Workbook

Sheet 1. Stammdaten (Empfänger)
B1: Stammdaten | J1: Bearbeitungshinweise für den Finanzierungsempfänger: Bitte füllen Sie zuerst die folgenden Stammdaten aus, bevor Sie dann den Reiter "Budget" ausfüllen Bitte füllen Sie nur die blau hinterlegten Zellen aus. Alle anderen Zellen werden automatisch berechnet.
B3: Name des Empfängers: | H3: =IF(C3="Bitte eintragen","- Bitte den Namen Ihres Vereins im Feld <Name des Zuschussempfängers> eintragen; "," ") -> 
B5: Handelt es sich um das erste Budget oder um eine Vertragsanpassung? | C5: Auswählen | F5: =IF(C5="Vertragsanpassung","Wievielte Vertrags-anpassung?:","") ->  | G5: Nur bei Vertragsergänzung auswählen | H5: =IF(C5="Vertragsanpassung",1,0) -> 0
B6: Titel des Projekts & Vertragsnummer | H6: =IF(C6="Veranstaltung",1,IF(C6="Projekt",1,0)) -> 0
B7: Benötigen Sie Verwaltungsgemeinkosten? | C7: Auswählen | D7: Bitte die Höhe der Verwaltungsgemein-kosten in Prozent angeben | H7: =IF(C7="Ja, anderer Betrag",1,0) -> 0
B8: Leisten Sie einen (finanziellen) Eigenbeitrag? | C8: Auswählen | D8: Höhe in EUR | H8: =IF(C8="Ja, anderer Betrag",1,0) -> 0
B9: Von wie vielen Gebern soll das Projekt mitfinanziert werden (neben der GIZ)? | C9: Auswählen | D9: Name des Drittmittelgebers | F9: Höhe der Drittmittel in EUR
D10: Name des Drittmittelgebers | F10: Höhe der Drittmittel in EUR | H10: =IF(C10="Ja",1,0) -> 0
D11: Name des Drittmittelgebers | F11: Höhe der Drittmittel in EUR | H11: =IF(C11="Ja",1,0) -> 0
D12: Name des Drittmittelgebers | F12: Höhe der Drittmittel in EUR
D13: Name des Drittmittelgebers | F13: Höhe der Drittmittel in EUR
D14: Name des Drittmittelgebers | F14: Höhe der Drittmittel in EUR
D15: Name des Drittmittelgebers | F15: Höhe der Drittmittel in EUR
B16: Sollen Mittel an Drittempfänger weitergeleitet werden? (Bitte beachten Sie, dass hiermit keine Leistungen gemeint sind) | C16: Auswählen | D16: Das sind Partner die eigenständig einen Teil des Empfängerprojekts umsetzten. Es muss ein gesondertes Budget eingereicht und eine kaufmännische und rechtliche Eignungsprüfung (nur die Kriterien: Rechtspersönlichkeit und Gemeinnützigkeit) durch das GIZ-Projekt durchgeführt werden.
B17: Werden Medikamente und Pestizide und Mineraldünger beschafft? | C17: Auswählen | D17: Ein gesonderter GIZ-interner Genehmigungsprozess ist notwendig
B18: Sachbeschaffungsanteil von mehr als EUR 1.000.000 oder mehr als 50% bei einem Vertragswert der Finanzierung von mindestens EUR 400.000? | C18: Auswählen | D18: Ein gesonderter GIZ-interner Genehmigungsprozess ist notwendig
B19: Werden Baumaßnahmen finanziert? | C19: Auswählen | D19: Ein gesonderter GIZ- interner Genehmigungsprozess ist notwendig. Bitte beachten Sie, dass Baumaßnahmen im Rahmen eines örtlichen Zuschusses nur in seltenen Ausnahmen durch die GIZ erlaubt werden.
B20: Sollen im Budget Ausfüllhilfen angezeigt werden? "Ja" zum Bearbeiten empfohlen "Nein" zur besseren Übersicht empfohlen | C20: Ja
B22: Datum der Erstellung des Budgets:

Sheet Budget Finanzierungen
A1: =IF('1. Stammdaten (Empfänger)'!C3="","BITTE ZUERST REITER 'Stammdaten' AUSFÜLLEN (s.u.)",CONCATENATE("Budget / Finanzierungsplan - Anlage 1",CHAR(10),'1. Stammdaten (Empfänger)'!C3," - ",'1. Stammdaten (Empfänger)'!C6,"",'1. Stammdaten (Empfänger)'!E6,"",IF(L4="VE",CONCATENATE(" - ",'1. Stammdaten (Empfänger)'!G5," VERTRAGSERGÄNZUNG",""),""))) -> BITTE ZUERST REITER 'Stammdaten' AUSFÜLLEN (s.u.) | J1: ='1. Stammdaten (Empfänger)'!C22 -> 00:00:00 | N1: Keine Änderung | O1: Bearbeitunghinweise: Bitte füllen Sie zuerst die Stammdaten aus, bevor Sie dann diesen Reiter "Budget" ausfüllen. Bitte füllen Sie im Reiter 'Budget' nur die blau hinterlegten Zellen aus. Alle anderen Zellen werden automatisch berechnet.
J2: 2023-08 | N2: Änderung
B3: Beschreibung | C3: Code | D3: Anzahl | E3: Einheit (z.B. Person, Fahrzeug, Raum…) | F3: Anzahl | G3: Einheit (z.B. Monate, Tage, Trainings…) | H3: Förderfähig bis zu in EUR (Preis pro Einheit) | I3: Gesamt GIZ Anteil in EUR (bis zu) | J3: Eigenbeitrag / Dritt-finanzierung in EUR (bis zu) | L3: =IF($L$4="VE",CONCATENATE("Bei Vertragsanpassungen:",CHAR(10),"hat sich diese Budgetzeile geändert?"),"") ->  | O3: Generelle Hinweise: Dieses Format des Budgets gilt als Abrechnungsgrundlage. Sie können gerne für Ihren internen Gebrauch weitere Dateien mit ausführlicheren Informationen erstellen. Alle Positionen, die im Budget aufgeführt sind, müssen sich in der Projektbeschreibung wiederfinden, um den Projektbezug ersichtlich zu machen. Die Tabelle ist mit Formeln gespeist, welche beibehalten werden müssen. Bitte behalten Sie die Formatierung mit zwei Nachkommastellen bei. Es empfiehlt sich, Einheiten, wenn möglich, aufzurunden. Die Kosten werden mit einem Wert "bis zu" vereinbart.
B4: =IF('1. Stammdaten (Empfänger)'!C20="Ja",CONCATENATE("Hinweis: Blaue Felder durch ",IF('1. Stammdaten (Empfänger)'!C3="","den Zuschussempfänger",'1. Stammdaten (Empfänger)'!C3)," auszufüllen"),"") -> Hinweis: Blaue Felder durch den Zuschussempfänger auszufüllen | I4: =IF('1. Stammdaten (Empfänger)'!C20="Ja","Hinweis: Wird automatisch ausgefüllt","") -> Hinweis: Wird automatisch ausgefüllt | L4: =IF('1. Stammdaten (Empfänger)'!C5="Vertragsanpassung","VE","NOVE") -> NOVE
A5: 1 | B5: Personal - Selbstkosten für Arbeit-nehmer*innen des ZE (Funktionsbezeichnung) (Hinweis 1: Nur Mitarbeiter/innen Ihrer Organisationen; der Nachweis dieser Budgetlinie muss in Form von Gehaltsabrechnungen bzw. bei Teilfinanzierungen in Form von Gehaltsabrechnungen und Zeitaufschrieben erfolgen; Hinweis 2: Es können ausschließlich Personaleinzelkosten (Arbeitgeberbrutto) abgerechnet werden, Zuschläge wie Personalgemeinkosten, die anteilig auf Personal berechnet werden, sind nicht förderungsfähig) | D5: =IF('1. Stammdaten (Empfänger)'!C20="Ja",CONCATENATE("AUSFÜLLHILFE: ",Beispiel!O5),"") -> AUSFÜLLHILFE: Die Spalte "Förderfähig bis zu" sollte immer das Arbeitgeberbrutto ausweisen. Bei Teilzeitstellen ist der Prozentsatz in Spalte D anzugeben. Bitte geben Sie an, welche gesetzlichen Personalnebenkosten für Ihr Land anfallen. Grundsätzlich finanzierbar sind Sozialabgaben, und arbeitsvertraglich oder tariflichvertraglich vereinbarte Zahlungen (ausgenommen sind Bonuszahlungen oder Gewinnbeteiligungen). Davon abweichende Nebenkosten müssen vor Vertragserstellung abgesprochen, geprüft und als Notiz in die Budgetzeile aufgenommen werden. Verträge über Minijobs oder studentische Hilfskräfte sind den Personalkosten zuzuordnen, auch wenn keine Sozialabgaben anfallen. Wenn anteilig mehrere Personen finanziert werden sollen (bspw. 3 Personen à 75% - bitte entsprechend die Anzahl der Monate erhöhen und die Anzahl der Personen in der Beschreibung der Budgetlinie aufnehmen. | I5: =SUM(I6:I42) -> 0.00 € | J5: Die GIZ kann keine Budgetlinien anteilig übernehmen, mit Ausnahme der Hauptbudgetlinien "Personalkosten", die prozentual angesetzt werden können, sowie "Anteilige lokale Projektkosten". Weitere Kosten, welche im Rahmen der Projektumsetzung anfallen und nicht durch die GIZ übernommen werden sollen, werden separat kalkuliert. Entweder als Eigenanteil, oder, falls einschlägig, als finanzieller Beitrag eines Dritten/ Drittfinanzierung. | L5: =IF(L4="VE","ACHTUNG: Kosten, die aufgrund von Währungsschwankungen entstehen, können nicht von der GIZ übernommen werden.","") -> 
E6: Person | G6: Monate | I6: =ROUND(D6*F6*H6,2) -> 0.00 € | L6: Keine Änderung
E7: Person | G7: Monate | I7: =ROUND(D7*F7*H7,2) -> 0.00 € | L7: Keine Änderung
E8: Person | G8: Monate | I8: 0.00 € | L8: Keine Änderung
E9: Person | G9: Monate | I9: 0.00 € | L9: Keine Änderung
E10: Person | G10: Monate | I10: 0.00 € | L10: Keine Änderung
E11: Person | G11: Monate | I11: 0.00 € | L11: Keine Änderung
E12: Person | G12: Monate | I12: 0.00 € | L12: Keine Änderung
E13: Person | G13: Monate | I13: 0.00 € | L13: Keine Änderung
E14: Person | G14: Monate | I14: 0.00 € | L14: Keine Änderung
E15: Person | G15: Monate | I15: =ROUND(D15*F15*H15,2) -> 0.00 € | L15: Keine Änderung
E16: Person | G16: Monate | I16: 0.00 € | L16: Keine Änderung
E17: Person | G17: Monate | I17: 0.00 € | L17: Keine Änderung
E18: Person | G18: Monate | I18: 0.00 € | L18: Keine Änderung
E19: Person | G19: Monate | I19: 0.00 € | L19: Keine Änderung
E20: Person | G20: Monate | I20: 0.00 € | L20: Keine Änderung
E21: Person | G21: Monate | I21: 0.00 € | L21: Keine Änderung
E22: Person | G22: Monate | I22: 0.00 € | L22: Keine Änderung
E23: Person | G23: Monate | I23: 0.00 € | L23: Keine Änderung
E24: Person | G24: Monate | I24: 0.00 € | L24: Keine Änderung
E25: Person | G25: Monate | I25: 0.00 € | L25: Keine Änderung
E26: Person | G26: Monate | I26: =ROUND(D26*F26*H26,2) -> 0.00 € | L26: Keine Änderung
E27: Person | G27: Monate | I27: 0.00 € | L27: Keine Änderung
E28: Person | G28: Monate | I28: 0.00 € | L28: Keine Änderung
E29: Person | G29: Monate | I29: 0.00 € | L29: Keine Änderung
E30: Person | G30: Monate | I30: 0.00 € | L30: Keine Änderung
E31: Person | G31: Monate | I31: 0.00 € | L31: Keine Änderung
E32: Person | G32: Monate | I32: 0.00 € | L32: Keine Änderung
E33: Person | G33: Monate | I33: 0.00 € | L33: Keine Änderung
E34: Person | G34: Monate | I34: 0.00 € | L34: Keine Änderung
E35: Person | G35: Monate | I35: 0.00 € | L35: Keine Änderung
E36: Person | G36: Monate | I36: 0.00 € | L36: Keine Änderung
E37: Person | G37: Monate | I37: 0.00 € | L37: Keine Änderung
E38: Person | G38: Monate | I38: 0.00 € | L38: Keine Änderung
E39: Person | G39: Monate | I39: 0.00 € | L39: Keine Änderung
E40: Person | G40: Monate | I40: 0.00 € | L40: Keine Änderung
E41: Person | G41: Monate | I41: 0.00 € | L41: Keine Änderung
E42: Person | G42: Monate | I42: 0.00 € | L42: Keine Änderung
A43: 2 | B43: Externe Dienstleistungen (Art/Inhalt der Leistung) | D43: =IF('1. Stammdaten (Empfänger)'!C20="Ja",CONCATENATE("AUSFÜLLHILFE: ",Beispiel!O11),"") -> AUSFÜLLHILFE: Funktionstitel angeben; keine Details des Vertrages (Arbeitsstunden etc); nur die Anzahl der Verträge und den geplanten Wert nennen (die relevanten Vergaberichtlinien gemäß Vertragstext müssen eingehalten werden!); pro Vertrag sollte eine Budgetzeile verwendet werden; alle Kosten, die im Rahmen der Leistungserbringung unter einem Dienstleistungsvertrag anfallen (bspw. Training, Reisen), werden in einer Budgetlinie dargestellt. Veranstaltungen: Leistungen die vom selben Anbieter erbracht werden, sollen in einer Budgetzeile dargestellt werden. (z. Bsp: wenn Catering und der Veranstaltungsort von einem Hotel angeboten werden, dann gehören diese in eine Budgetzeile, wenn ein anderes Hotel für Übernachtungen gebucht wird, gehört dieses in eine einzelne Budgetlinie) Einnahmen, die der Empfänger aus dem Veranstaltungsbetrieb erhält, können nicht aus dem Vertrag finanziert werden (z. Bsp Raummiete für eigene Räumlichkeiten). Nur tatsächliche nachweisbare Kosten werden finanziert. | I43: =SUM(I44:I72) -> 0.00 €
E44: Vertrag | I44: =ROUND(D44*H44,2) -> 0.00 € | L44: Keine Änderung
E45: Vertrag | I45: 0.00 € | L45: Keine Änderung
E46: Vertrag | I46: 0.00 € | L46: Keine Änderung
E47: Vertrag | I47: 0.00 € | L47: Keine Änderung
E48: Vertrag | I48: 0.00 € | L48: Keine Änderung
E49: Vertrag | I49: 0.00 € | L49: Keine Änderung
E50: Vertrag | I50: 0.00 € | L50: Keine Änderung
E51: Vertrag | I51: 0.00 € | L51: Keine Änderung
E52: Vertrag | I52: 0.00 € | L52: Keine Änderung
E53: Vertrag | I53: 0.00 € | L53: Keine Änderung
E54: Vertrag | I54: 0.00 € | L54: Keine Änderung
E55: Vertrag | I55: =ROUND(D55*H55,2) -> 0.00 € | L55: Keine Änderung
E56: Vertrag | I56: 0.00 € | L56: Keine Änderung
E57: Vertrag | I57: 0.00 € | L57: Keine Änderung
E58: Vertrag | I58: 0.00 € | L58: Keine Änderung
E59: Vertrag | I59: =ROUND(D59*H59,2) -> 0.00 € | L59: Keine Änderung
E60: Vertrag | I60: 0.00 € | L60: Keine Änderung
E61: Vertrag | I61: 0.00 € | L61: Keine Änderung
E62: Vertrag | I62: 0.00 € | L62: Keine Änderung
E63: Vertrag | I63: 0.00 € | L63: Keine Änderung
E64: Vertrag | I64: 0.00 € | L64: Keine Änderung
E65: Vertrag | I65: 0.00 € | L65: Keine Änderung
E66: Vertrag | I66: 0.00 € | L66: Keine Änderung
E67: Vertrag | I67: 0.00 € | L67: Keine Änderung
E68: Vertrag | I68: 0.00 € | L68: Keine Änderung
E69: Vertrag | I69: 0.00 € | L69: Keine Änderung
E70: Vertrag | I70: 0.00 € | L70: Keine Änderung
E71: Vertrag | I71: 0.00 € | L71: Keine Änderung
E72: Vertrag | I72: 0.00 € | L72: Keine Änderung
A73: 3 | B73: Transportkosten / Reisekosten | D73: =IF('1. Stammdaten (Empfänger)'!C20="Ja",CONCATENATE("AUSFÜLLHILFE: ",Beispiel!O22),"") -> AUSFÜLLHILFE: Zu Reisekosten zählen üblicherweise alle Arten von Transport, Übernachtungen, Tagegelder, Visa. Anderweitige Kosten sind bitte separat aufzuführen. Die Abrechnung erfolgt anhand der Rechnungen und/oder der Reiserichtlinien des Empfängers und/oder gesetzlichen Vorgaben (zum Bsp: Bundesreisekostengesetz) . Eine Aufteilung in verschiedene Personengruppen ist nicht erwünscht. Bitte geben Sie keine Menge der Flüge an - bei Abweichungen sind Vertragsergänzungen notwendig und solle ein Audit stattfinden wird die Zahl der Flüge geprüft. | I73: =SUM(I74:I91) -> 0.00 €
I74: =ROUND(D74*H74,2) -> 0.00 € | L74: Keine Änderung
I75: 0.00 € | L75: Keine Änderung
I76: 0.00 € | L76: Keine Änderung
I77: 0.00 € | L77: Keine Änderung
I78: 0.00 € | L78: Keine Änderung
I79: 0.00 € | L79: Keine Änderung
I80: =ROUND(D80*H80,2) -> 0.00 € | L80: Keine Änderung
I81: 0.00 € | L81: Keine Änderung
I82: 0.00 € | L82: Keine Änderung
I83: 0.00 €
I84: 0.00 € | L84: Keine Änderung
I85: 0.00 € | L85: Keine Änderung
I86: 0.00 € | L86: Keine Änderung
I87: 0.00 € | L87: Keine Änderung
I88: 0.00 € | L88: Keine Änderung
I89: 0.00 €
I90: 0.00 €
I91: 0.00 €
A92: 4 | B92: Beschaffung von Sachgütern | D92: =IF('1. Stammdaten (Empfänger)'!C20="Ja",CONCATENATE("AUSFÜLLHILFE: ",Beispiel!O35),"") -> AUSFÜLLHILFE: Güter, die beschafft und innerhalb von einer Rechnung nachgewiesen werden, sollten in einer Budgetzeile dargestellt werden. Z. B. kann IT Equipment als eine Budgetlinie aufgeführt werden - in diesem Fall sollte in Klammern näher definiert werden, welche Sachgüter voraussichtlich beschafft werden. Im Fall von Medikamente, Pestiziden oder Mineraldünger sind weitere Details für eine Freigabe notwendig. | I92: =SUM(I93:I108) -> 0.00 € | K92: =IF(I154>400000,1,0)+(IF(I92>(I154/2),1,0)) -> 0
I93: =ROUND(D93*H93,2) -> 0.00 € | L93: Keine Änderung
I94: 0.00 € | L94: Keine Änderung
I95: 0.00 € | L95: Keine Änderung
I96: 0.00 € | L96: Keine Änderung
I97: 0.00 € | L97: Keine Änderung
I98: =ROUND(D98*H98,2) -> 0.00 € | L98: Keine Änderung
I99: 0.00 € | L99: Keine Änderung
I100: 0.00 € | L100: Keine Änderung
I101: 0.00 € | L101: Keine Änderung
I102: 0.00 € | L102: Keine Änderung
I103: =ROUND(D103*H103,2) -> 0.00 € | L103: Keine Änderung
I104: 0.00 € | L104: Keine Änderung
I105: 0.00 € | L105: Keine Änderung
I106: 0.00 € | L106: Keine Änderung
I107: 0.00 € | L107: Keine Änderung
I108: 0.00 € | L108: Keine Änderung
A109: 5 | B109: Sonstige Kosten / Verbrauchsmaterialien | D109: =IF('1. Stammdaten (Empfänger)'!C20="Ja",CONCATENATE("AUSFÜLLHILFE: ",TRIM(Beispiel!O46)),"") -> AUSFÜLLHILFE: Bitte beachten Sie dass indirekte Kosten unter die Verwaltungsgemeinkosten fallen. Es können nur direkte Kosten als einzelne Budgetlinien budgetiert werden. Wenn Mietkosten angegeben werden können nur direkte Kosten, sprich die Kaltmiete, kalkuliert werden. Die Nebenkosten sind als indirekte Kosten und somit in die Verwaltungsgemeinkosten mit einzurechnen. Im Gegensatz zu beschafften Sachgütern, die über einen längeren Zeitraum verwendet werden, handelt es sich bei Verbrauchsmaterialien um Güter, die aufgebraucht werden - wie bspw. Druckerpatronen, Druckerpapier. | I109: =SUM(I110:I125) -> 0.00 €
I110: =ROUND(D110*H110,2) -> 0.00 € | L110: Keine Änderung
I111: 0.00 € | L111: Keine Änderung
I112: 0.00 € | L112: Keine Änderung
I113: 0.00 € | L113: Keine Änderung
I114: 0.00 € | L114: Keine Änderung
I115: =ROUND(D115*H115,2) -> 0.00 € | L115: Keine Änderung
I116: 0.00 € | L116: Keine Änderung
I117: 0.00 € | L117: Keine Änderung
I118: 0.00 € | L118: Keine Änderung
I119: =ROUND(D119*H119,2) -> 0.00 € | L119: Keine Änderung
I120: 0.00 € | L120: Keine Änderung
I121: 0.00 € | L121: Keine Änderung
I122: 0.00 € | L122: Keine Änderung
I123: 0.00 € | L123: Keine Änderung
I124: 0.00 € | L124: Keine Änderung
I125: 0.00 € | L125: Keine Änderung
A126: 6 | B126: Mittel zur direkten Unterstützung von Drittbegünstigten (Hinweis: Diese Budgetlinie bezieht sich vorzugsweise auf Sachbeiträge an Drittbegünstigte, im Falle von finanziellen Beiträgen muss klar dargestellt werden, wie Zahlungen nachgewiesen werden. Das Auswahlverfahren für die Drittbegünstigten muss in der Projektbeschreibung verdeutlicht werden) | D126: =IF('1. Stammdaten (Empfänger)'!C20="Ja",CONCATENATE("AUSFÜLLHILFE: ",TRIM(Beispiel!O57)),"") -> AUSFÜLLHILFE: Bitte den Hinweis in der Budgetzeile beachten. Nachweise müssen im Budget vereinbart und Auswahlkriterien in der Projektbeschreibung dargestellt werden. Wichtig: Hier handelt es sich nur um Begünstigte, die von dem Projekt des Empfängers profitieren. Dazu gehören Start-Up Förderung, Förderung von Initiativen, Cash for Work, Förderwettbewerbe, Stipendien und ähnliches. Absprache zu Nachweisen ist erforderlich. Zu den Details ist eine Beratung beim Vertragsmanagement notwendig. | I126: =SUM(I127:I136) -> 0.00 € | L126: =IF(L125="VE","ACHTUNG: Kosten, die aufgrund von Währungsschwankungen entstehen, können nicht von der GIZ übernommen werden.","") -> 
B127: XXX (Abrechnung erfolgt gegen …) | I127: =ROUND(D127*F127*H127,2) -> 0.00 € | L127: Keine Änderung
B128: XXX (Abrechnung erfolgt gegen …) | I128: =ROUND(D128*F128*H128,2) -> 0.00 € | L128: Keine Änderung
B129: XXX (Abrechnung erfolgt gegen …) | I129: =ROUND(D129*F129*H129,2) -> 0.00 € | L129: Keine Änderung
B130: XXX (Abrechnung erfolgt gegen …) | I130: 0.00 € | L130: Keine Änderung
B131: XXX (Abrechnung erfolgt gegen …) | I131: 0.00 € | L131: Keine Änderung
B132: XXX (Abrechnung erfolgt gegen …) | I132: 0.00 € | L132: Keine Änderung
B133: XXX (Abrechnung erfolgt gegen …) | I133: 0.00 € | L133: Keine Änderung
B134: XXX (Abrechnung erfolgt gegen …) | I134: 0.00 € | L134: Keine Änderung
B135: XXX (Abrechnung erfolgt gegen …) | I135: 0.00 € | L135: Keine Änderung
B136: XXX (Abrechnung erfolgt gegen …) | I136: 0.00 € | L136: Keine Änderung
A137: 7 | B137: Anteilige lokale Projektkosten (bspw. IT, Research) | D137: =IF('1. Stammdaten (Empfänger)'!C20="Ja",CONCATENATE("AUSFÜLLHILFE: ",TRIM(Beispiel!O62)),"") -> AUSFÜLLHILFE: Diese Budgetlinie ist nur für Organisationen, die in ihren Buchhaltungssystemen mit einer Verteilung bzw. Umlage der Gemeinkosten arbeiten und diese entsprechend nachweisen können. Die Nachweisart wird für jeden Einzelfall festgelegt. Ein konkretes Beispiel ist der prozentuale Nachweis anhand der Gesamtkosten und Zeitaufschriebe. | I137: =SUM(I138:I142) -> 0.00 €
I138: =ROUND(D138*F138*H138,2) -> 0.00 € | L138: Keine Änderung
I139: =ROUND(D139*F139*H139,2) -> 0.00 € | L139: Keine Änderung
I140: 0.00 € | L140: Keine Änderung
I141: 0.00 € | L141: Keine Änderung
I142: 0.00 € | L142: Keine Änderung
B143: Zwischensumme - direkte Kosten | I143: =I109+I92+I43+I5+I73+I126+I137 -> 0.00 €
A144: 8 | B144: Verwaltungsgemeinkosten | D144: =IF('1. Stammdaten (Empfänger)'!C20="Ja",CONCATENATE("AUSFÜLLHILFE: ",TRIM(Beispiel!O66)),"") -> AUSFÜLLHILFE: Die Verwaltungsgemeinkosten sollten 0% betragen. Diese werden normalerweise als Eigenbetrag des Finanzierungsempfängers übernommen. Wenn die Übernahme durch den Finanzierungsempfänger nicht möglich ist, kann die GIZ einen kleinen Anteil der Verwaltungsgemeinkosten übernehmen. Die Art und Höhe der Kosten wird ggf. durch einen Wirtschaftsprüfer überprüft. Wenn sich die Verwaltungsgemeinkosten auf weniger Budgetlinien beziehen ist eine Information ans Vertragsmanagement erforderlich. | I144: =I145 -> 0.00 €
B145: Verwaltungsgemeinkosten (auf Budgetlinie 1-X) | D145: ='1. Stammdaten (Empfänger)'!E7 -> 0% | H145: =I143 -> 0.00 € | I145: =ROUND(D145*H145,2) -> 0.00 € | L145: Keine Änderung
B146: Zwischensumme - Finanzierung durch GIZ (bis zu - gegen Nachweis)* (direkte Kosten + Verwaltungsgemeinkosten) | I146: =I143+I144 -> 0.00 €
A147: 9 | B147: Weiterleitung von Mitteln an Drittempfänger - ein detailliertes Budget muss eingereicht werden - | D147: =IF('1. Stammdaten (Empfänger)'!C20="Ja",CONCATENATE("AUSFÜLLHILFE: ",TRIM(Beispiel!O69)),"") -> AUSFÜLLHILFE: Hier handelt es sich um Drittempfänger (Co-Implementierer). Es sind Partner die eigenständig einen Teil des Projekts umsetzten. Es muss ein gesondertes Budget eingereicht und eine kaufmännisch und rechtliche Eignungsprüfung (nur die Kriterien: Rechtspersönlichkeit und Gemeinnützigkeit) durch das GIZ-Projekt durchgeführt werden. | I147: =SUM(I148:I153) -> 0.00 €
B148: XYZ (Name Drittempfänger) | D148: 1 | E148: Einheit | F148: 1 | G148: Weiterleitung | H148: ='Weiterleitung von Mitteln'!I116 -> 0.00 € | I148: =D148*F148*H148 -> 0.00 € | L148: Keine Änderung
B149: XYZ (Name Drittempfänger) | D149: 1 | E149: Einheit | F149: 1 | G149: Weiterleitung | H149: 0.00 € | I149: =D149*F149*H149 -> 0.00 € | L149: Keine Änderung
B150: XYZ (Name Drittempfänger) | D150: 1 | E150: Einheit | F150: 1 | G150: Weiterleitung | H150: 0.00 € | I150: =D150*F150*H150 -> 0.00 € | L150: Keine Änderung
B151: XYZ (Name Drittempfänger) | D151: 1 | E151: Einheit | F151: 1 | G151: Weiterleitung | H151: 0.00 € | I151: 0.00 € | L151: Keine Änderung
B152: XYZ (Name Drittempfänger) | D152: 1 | E152: Einheit | F152: 1 | G152: Weiterleitung | H152: 0.00 € | I152: 0.00 € | L152: Keine Änderung
B153: XYZ (Name Drittempfänger) | D153: 1 | E153: Einheit | F153: 1 | G153: Weiterleitung | H153: 0.00 € | I153: 0.00 € | K153: Anteile in Prozent | L153: Keine Änderung
B154: GIZ Anteil (bis zu - gegen Nachweis)* | I154: =I146+I147 -> 0.00 € | K154: =IFERROR(I154/$I$164,"") -> 
A155: 10 | B155: Eigenbeitrag/ Drittfinanzierung | D155: =IF('1. Stammdaten (Empfänger)'!C20="Ja",CONCATENATE("AUSFÜLLHILFE: ",TRIM(Beispiel!O74)),"") -> AUSFÜLLHILFE: Geben Sie nur den Gesamtwert des Eigenbeitrags/der Drittfinanzierung an. Eine kurze Beschreibung der Anteilsfinanzierung ist in die Projektbeschreibung mit aufzunehmen. | J155: =SUM(J156:J163) -> 0.00
B156: =_xlfn.IFS('1. Stammdaten (Empfänger)'!C8="Nein","kein finanzieller Eigenbeitrag", '1. Stammdaten (Empfänger)'!C8="Ja",'1. Stammdaten (Empfänger)'!C3, '1. Stammdaten (Empfänger)'!C8="Auswählen", "bitte füllen Sie die Stammdaten vollständig aus",TRUE,"") -> bitte füllen Sie die Stammdaten vollständig aus | D156: 1 | E156: Einheit | F156: 1 | G156: Beitrag | H156: =IF('1. Stammdaten (Empfänger)'!C8="Ja",'1. Stammdaten (Empfänger)'!E8,"") ->  | J156: =H156 ->  | K156: =IFERROR(J156/$I$164,"") ->  | L156: Keine Änderung
B157: =_xlfn.IFS('1. Stammdaten (Empfänger)'!C9=0,"Keine Drittmittelfinanzierung",'1. Stammdaten (Empfänger)'!C9= "Auswählen","bitte füllen Sie die Stammdaten vollständig aus", '1. Stammdaten (Empfänger)'!C9>0,'1. Stammdaten (Empfänger)'!E9,TRUE,"") -> bitte füllen Sie die Stammdaten vollständig aus | D157: 1 | E157: Einheit | F157: 1 | G157: Beitrag | H157: =_xlfn.IFS('1. Stammdaten (Empfänger)'!$C$9="Auswählen", "",'1. Stammdaten (Empfänger)'!$C$9>0,'1. Stammdaten (Empfänger)'!G9, TRUE,"") ->  | K157: =IFERROR(J157/$I$164,"") ->  | L157: Keine Änderung
B158: =_xlfn.IFS('1. Stammdaten (Empfänger)'!C9=0,"Keine Drittmittelfinanzierung",'1. Stammdaten (Empfänger)'!C9= "Auswählen","bitte füllen Sie die Stammdaten vollständig aus", '1. Stammdaten (Empfänger)'!C9>1,'1. Stammdaten (Empfänger)'!E10,TRUE,"") -> bitte füllen Sie die Stammdaten vollständig aus | D158: 1 | E158: Einheit | F158: 1 | G158: Beitrag | H158: =_xlfn.IFS('1. Stammdaten (Empfänger)'!$C$9="Auswählen", "",'1. Stammdaten (Empfänger)'!$C$9>1,'1. Stammdaten (Empfänger)'!G10, TRUE,"") ->  | L158: Keine Änderung
B159: =_xlfn.IFS('1. Stammdaten (Empfänger)'!C9=0,"Keine Drittmittelfinanzierung",'1. Stammdaten (Empfänger)'!C9= "Auswählen","bitte füllen Sie die Stammdaten vollständig aus", '1. Stammdaten (Empfänger)'!C9>2,'1. Stammdaten (Empfänger)'!E11,TRUE,"") -> bitte füllen Sie die Stammdaten vollständig aus | D159: 1 | E159: Einheit | F159: 1 | G159: Beitrag | H159: =_xlfn.IFS('1. Stammdaten (Empfänger)'!$C$9="Auswählen", "",'1. Stammdaten (Empfänger)'!$C$9>2,'1. Stammdaten (Empfänger)'!G11, TRUE,"") ->  | L159: Keine Änderung
B160: =_xlfn.IFS('1. Stammdaten (Empfänger)'!C9=0,"Keine Drittmittelfinanzierung",'1. Stammdaten (Empfänger)'!C9= "Auswählen","bitte füllen Sie die Stammdaten vollständig aus", '1. Stammdaten (Empfänger)'!C9>3,'1. Stammdaten (Empfänger)'!E12,TRUE,"") -> bitte füllen Sie die Stammdaten vollständig aus | D160: 1 | E160: Einheit | F160: 1 | G160: Beitrag | H160: =_xlfn.IFS('1. Stammdaten (Empfänger)'!$C$9="Auswählen", "",'1. Stammdaten (Empfänger)'!$C$9>3,'1. Stammdaten (Empfänger)'!G12, TRUE,"") ->  | L160: Keine Änderung
B161: =_xlfn.IFS('1. Stammdaten (Empfänger)'!C9=0,"Keine Drittmittelfinanzierung",'1. Stammdaten (Empfänger)'!C9= "Auswählen","bitte füllen Sie die Stammdaten vollständig aus", '1. Stammdaten (Empfänger)'!C9>4,'1. Stammdaten (Empfänger)'!E13,TRUE,"") -> bitte füllen Sie die Stammdaten vollständig aus | D161: 1 | E161: Einheit | F161: 1 | G161: Beitrag | H161: =_xlfn.IFS('1. Stammdaten (Empfänger)'!$C$9="Auswählen", "",'1. Stammdaten (Empfänger)'!$C$9>4,'1. Stammdaten (Empfänger)'!G13, TRUE,"") ->  | L161: Keine Änderung
B162: =_xlfn.IFS('1. Stammdaten (Empfänger)'!C9=0,"Keine Drittmittelfinanzierung",'1. Stammdaten (Empfänger)'!C9= "Auswählen","bitte füllen Sie die Stammdaten vollständig aus", '1. Stammdaten (Empfänger)'!C9>5,'1. Stammdaten (Empfänger)'!E14,TRUE,"") -> bitte füllen Sie die Stammdaten vollständig aus | D162: 1 | E162: Einheit | F162: 1 | G162: Beitrag | H162: =_xlfn.IFS('1. Stammdaten (Empfänger)'!$C$9="Auswählen", "",'1. Stammdaten (Empfänger)'!$C$9>5,'1. Stammdaten (Empfänger)'!G14, TRUE,"") ->  | L162: Keine Änderung
B163: =_xlfn.IFS('1. Stammdaten (Empfänger)'!C9=0,"Keine Drittmittelfinanzierung",'1. Stammdaten (Empfänger)'!C9= "Auswählen","bitte füllen Sie die Stammdaten vollständig aus", '1. Stammdaten (Empfänger)'!C9>6,'1. Stammdaten (Empfänger)'!E15,TRUE,"") -> bitte füllen Sie die Stammdaten vollständig aus | D163: 1 | E163: Einheit | F163: 1 | G163: Beitrag | H163: =_xlfn.IFS('1. Stammdaten (Empfänger)'!$C$9="Auswählen", "",'1. Stammdaten (Empfänger)'!$C$9>6,'1. Stammdaten (Empfänger)'!G15, TRUE,"") ->  | J163: =H163 ->  | K163: =IFERROR(J163/$I$164,"") ->  | L163: Keine Änderung
B164: Gesamtfinanzierung | I164: =I154+J155 -> 0.00 € | K164: =SUM(K154:K163) -> 0.00%
B166: *Alle Budgetlinien (mit Ausnahme der Verwaltungsgemeinkosten) müssen gegen Nachweis abgerechnet werden.
B168: Information: Sofern Vergaben für externe Dienstleistungen und/oder für Sachgüter und/oder Lieferungen von GIZ Geldern finanziert werden sollen, müssen die relevanten Vergaberichtlinien gemäß Vertragstext eingehalten werden!
B171: Einnahmen und Gewinne des Empfängers werden nicht finanziert. Interne Rechnungsstellungen zwischen Organisationseinheiten des Empfängers werden nicht finanziert.
B173: Bei Vertragsergänzungen: Bitte nehmen Sie Budgetanpassungen auf Basis des zuletzt vertraglich vereinbartem Budgets vor und markieren Sie die Änderungen farblich. Kosten, die aufgrund von Währungsschwankungen enstehen, können nicht von der GIZ übernommen werden.

Sheet Weiterleitung von Mitteln
B1: Budget/Finanzierungsplan - Anlage 1 | D1: Name des Drittempfängers: | J1: ='1. Stammdaten (Empfänger)'!C22 -> 00:00:00 | N1: Keine Änderung
N2: Änderung
B3: Beschreibung | C3: Code | D3: Menge | E3: Einheit (z.B. Person, Fahrzeug, Raum…) | F3: Anzahl | G3: Einheit (z.B. Monate, Tage, Trainings…) | H3: Förderfähig bis zu in EUR (Preis pro Einheit) | I3: Gesamt GIZ Anteil in EUR (bis zu) | J3: Eigenbeitrag / Dritt-finanzierung in EUR (bis zu) | L3: =IF($L$4="VE",CONCATENATE("Bei Vertragsanpassungen:",CHAR(10),"hat sich diese Budgetzeile geändert?"),"") -> 
B4: =IF('1. Stammdaten (Empfänger)'!C20="Ja","Hinweis: Blaue Felder durch den Drittempfänger auszufüllen","") -> Hinweis: Blaue Felder durch den Drittempfänger auszufüllen | I4: =IF('1. Stammdaten (Empfänger)'!C20="Ja","Hinweis: Wird automatisch ausgefüllt","") -> Hinweis: Wird automatisch ausgefüllt | L4: =IF('1. Stammdaten (Empfänger)'!C5="Vertragsanpassung","VE","NOVE") -> NOVE
A5: 1 | B5: Personal - Selbstkosten für Arbeit-nehmer*innen des ZE (Funktionsbezeichnung) (Hinweis 1: Nur Mitarbeiter/innen Ihrer Organisationen; der Nachweis dieser Budgetlinie muss in Form von Gehaltsabrechnungen bzw. bei Teilfinanzierungen in Form von Gehaltsabrechnungen und Zeitaufschrieben erfolgen; Hinweis 2: Es können ausschließlich Personaleinzelkosten (Arbeitgeberbrutto) abgerechnet werden, Zuschläge wie Personalgemeinkosten, die anteilig auf Personal berechnet werden, sind nicht förderungsfähig) | D5: =IF('1. Stammdaten (Empfänger)'!C20="Ja",CONCATENATE("AUSFÜLLHILFE: ",Beispiel!O5),"") -> AUSFÜLLHILFE: Die Spalte "Förderfähig bis zu" sollte immer das Arbeitgeberbrutto ausweisen. Bei Teilzeitstellen ist der Prozentsatz in Spalte D anzugeben. Bitte geben Sie an, welche gesetzlichen Personalnebenkosten für Ihr Land anfallen. Grundsätzlich finanzierbar sind Sozialabgaben, und arbeitsvertraglich oder tariflichvertraglich vereinbarte Zahlungen (ausgenommen sind Bonuszahlungen oder Gewinnbeteiligungen). Davon abweichende Nebenkosten müssen vor Vertragserstellung abgesprochen, geprüft und als Notiz in die Budgetzeile aufgenommen werden. Verträge über Minijobs oder studentische Hilfskräfte sind den Personalkosten zuzuordnen, auch wenn keine Sozialabgaben anfallen. Wenn anteilig mehrere Personen finanziert werden sollen (bspw. 3 Personen à 75% - bitte entsprechend die Anzahl der Monate erhöhen und die Anzahl der Personen in der Beschreibung der Budgetlinie aufnehmen. | I5: =SUM(I6:I31) -> 0.00 € | J5: Die GIZ kann keine Budgetlinien anteilig übernehmen, mit Ausnahme der Hauptbudgetlinien "Personalkosten", die prozentual angesetzt werden können, sowie "Anteilige lokale Projektkosten". Weitere Kosten, welche im Rahmen der Projektumsetzung anfallen und nicht durch die GIZ übernommen werden sollen, werden separat kalkuliert. Entweder als Eigenanteil, oder, falls einschlägig, als finanzieller Beitrag eines Dritten/ Drittfinanzierung. | K5: =IF(SUM(I5,#REF!,I32)>0.4*I115,1,0) ->  | L5: =IF(L4="VE","ACHTUNG: Kosten, die aufgrund von Währungsschwankungen entstehen, können nicht von der GIZ übernommen werden.","") -> 
E6: Person | G6: Monate | I6: =ROUND(D6*F6*H6,2) -> 0.00 € | L6: Keine Änderung
E7: Person | G7: Monate | I7: =ROUND(D7*F7*H7,2) -> 0.00 € | L7: Keine Änderung
E8: Person | G8: Monate | I8: 0.00 € | L8: Keine Änderung
E9: Person | G9: Monate | I9: 0.00 € | L9: Keine Änderung
E10: Person | G10: Monate | I10: =ROUND(D10*F10*H10,2) -> 0.00 € | L10: Keine Änderung
E11: Person | G11: Monate | I11: 0.00 € | L11: Keine Änderung
E12: Person | G12: Monate | I12: 0.00 € | L12: Keine Änderung
E13: Person | G13: Monate | I13: 0.00 € | L13: Keine Änderung
E14: Person | G14: Monate | I14: 0.00 € | L14: Keine Änderung
E15: Person | G15: Monate | I15: 0.00 € | L15: Keine Änderung
E16: Person | G16: Monate | I16: 0.00 € | L16: Keine Änderung
E17: Person | G17: Monate | I17: 0.00 € | L17: Keine Änderung
E18: Person | G18: Monate | I18: 0.00 € | L18: Keine Änderung
E19: Person | G19: Monate | I19: 0.00 € | L19: Keine Änderung
E20: Person | G20: Monate | I20: 0.00 € | L20: Keine Änderung
E21: Person | G21: Monate | I21: 0.00 € | L21: Keine Änderung
E22: Person | G22: Monate | I22: 0.00 € | L22: Keine Änderung
E23: Person | G23: Monate | I23: 0.00 € | L23: Keine Änderung
E24: Person | G24: Monate | I24: 0.00 € | L24: Keine Änderung
E25: Person | G25: Monate | I25: 0.00 € | L25: Keine Änderung
E26: Person | G26: Monate | I26: 0.00 € | L26: Keine Änderung
E27: Person | G27: Monate | I27: 0.00 € | L27: Keine Änderung
E28: Person | G28: Monate | I28: 0.00 € | L28: Keine Änderung
E29: Person | G29: Monate | I29: 0.00 € | L29: Keine Änderung
E30: Person | G30: Monate | I30: 0.00 € | L30: Keine Änderung
E31: Person | G31: Monate | I31: 0.00 € | L31: Keine Änderung
A32: 2 | B32: Externe Dienstleistungen (Art/Inhalt der Leistung) | D32: =IF('1. Stammdaten (Empfänger)'!C20="Ja",CONCATENATE("AUSFÜLLHILFE: ",Beispiel!O11),"") -> AUSFÜLLHILFE: Funktionstitel angeben; keine Details des Vertrages (Arbeitsstunden etc); nur die Anzahl der Verträge und den geplanten Wert nennen (die relevanten Vergaberichtlinien gemäß Vertragstext müssen eingehalten werden!); pro Vertrag sollte eine Budgetzeile verwendet werden; alle Kosten, die im Rahmen der Leistungserbringung unter einem Dienstleistungsvertrag anfallen (bspw. Training, Reisen), werden in einer Budgetlinie dargestellt. Veranstaltungen: Leistungen die vom selben Anbieter erbracht werden, sollen in einer Budgetzeile dargestellt werden. (z. Bsp: wenn Catering und der Veranstaltungsort von einem Hotel angeboten werden, dann gehören diese in eine Budgetzeile, wenn ein anderes Hotel für Übernachtungen gebucht wird, gehört dieses in eine einzelne Budgetlinie) Einnahmen, die der Empfänger aus dem Veranstaltungsbetrieb erhält, können nicht aus dem Vertrag finanziert werden (z. Bsp Raummiete für eigene Räumlichkeiten). Nur tatsächliche nachweisbare Kosten werden finanziert. | I32: =SUM(I33:I49) -> 0.00 €
E33: Vertrag | I33: =ROUND(D33*H33,2) -> 0.00 € | L33: Keine Änderung
E34: Vertrag | I34: =ROUND(D34*H34,2) -> 0.00 € | L34: Keine Änderung
E35: Vertrag | I35: 0.00 € | L35: Keine Änderung
E36: Vertrag | I36: 0.00 € | L36: Keine Änderung
E37: Vertrag | I37: 0.00 € | L37: Keine Änderung
E38: Vertrag | I38: 0.00 € | L38: Keine Änderung
E39: Vertrag | I39: 0.00 € | L39: Keine Änderung
E40: Vertrag | I40: 0.00 € | L40: Keine Änderung
E41: Vertrag | I41: 0.00 € | L41: Keine Änderung
E42: Vertrag | I42: 0.00 € | L42: Keine Änderung
E43: Vertrag | I43: 0.00 € | L43: Keine Änderung
E44: Vertrag | I44: 0.00 € | L44: Keine Änderung
E45: Vertrag | I45: 0.00 € | L45: Keine Änderung
E46: Vertrag | I46: 0.00 € | L46: Keine Änderung
E47: Vertrag | I47: 0.00 € | L47: Keine Änderung
E48: Vertrag | I48: 0.00 € | L48: Keine Änderung
E49: Vertrag | I49: 0.00 € | L49: Keine Änderung
A50: 3 | B50: Transportkosten / Reisekosten | D50: =IF('1. Stammdaten (Empfänger)'!C20="Ja",CONCATENATE("AUSFÜLLHILFE: ",Beispiel!O22),"") -> AUSFÜLLHILFE: Zu Reisekosten zählen üblicherweise alle Arten von Transport, Übernachtungen, Tagegelder, Visa. Anderweitige Kosten sind bitte separat aufzuführen. Die Abrechnung erfolgt anhand der Rechnungen und/oder der Reiserichtlinien des Empfängers und/oder gesetzlichen Vorgaben (zum Bsp: Bundesreisekostengesetz) . Eine Aufteilung in verschiedene Personengruppen ist nicht erwünscht. Bitte geben Sie keine Menge der Flüge an - bei Abweichungen sind Vertragsergänzungen notwendig und solle ein Audit stattfinden wird die Zahl der Flüge geprüft. | I50: =SUM(I51:I66) -> 0.00 €
I51: =ROUND(D51*H51,2) -> 0.00 € | L51: Keine Änderung
I52: 0.00 € | L52: Keine Änderung
I53: 0.00 € | L53: Keine Änderung
I54: 0.00 € | L54: Keine Änderung
I55: 0.00 € | L55: Keine Änderung
I56: =ROUND(D56*H56,2) -> 0.00 € | L56: Keine Änderung
I57: =ROUND(D57*H57,2) -> 0.00 € | L57: Keine Änderung
I58: 0.00 € | L58: Keine Änderung
I59: 0.00 € | L59: Keine Änderung
I60: 0.00 € | L60: Keine Änderung
I61: 0.00 € | L61: Keine Änderung
I62: 0.00 € | L62: Keine Änderung
I63: =ROUND(D63*H63,2) -> 0.00 € | L63: Keine Änderung
I64: 0.00 € | L64: Keine Änderung
I65: 0.00 € | L65: Keine Änderung
I66: 0.00 € | L66: Keine Änderung
A67: 4 | B67: Beschaffung von Sachgütern | D67: =IF('1. Stammdaten (Empfänger)'!C20="Ja",CONCATENATE("AUSFÜLLHILFE: ",Beispiel!O35),"") -> AUSFÜLLHILFE: Güter, die beschafft und innerhalb von einer Rechnung nachgewiesen werden, sollten in einer Budgetzeile dargestellt werden. Z. B. kann IT Equipment als eine Budgetlinie aufgeführt werden - in diesem Fall sollte in Klammern näher definiert werden, welche Sachgüter voraussichtlich beschafft werden. Im Fall von Medikamente, Pestiziden oder Mineraldünger sind weitere Details für eine Freigabe notwendig. | I67: =SUM(I68:I83) -> 0.00 €
I68: =ROUND(D68*H68,2) -> 0.00 € | L68: Keine Änderung
I69: 0.00 € | L69: Keine Änderung
I70: 0.00 € | L70: Keine Änderung
I71: 0.00 € | L71: Keine Änderung
I72: 0.00 € | L72: Keine Änderung
I73: 0.00 € | L73: Keine Änderung
I74: 0.00 € | L74: Keine Änderung
I75: =ROUND(D75*H75,2) -> 0.00 € | L75: Keine Änderung
I76: 0.00 € | L76: Keine Änderung
I77: 0.00 € | L77: Keine Änderung
I78: =ROUND(D78*H78,2) -> 0.00 € | L78: Keine Änderung
I79: 0.00 € | L79: Keine Änderung
I80: 0.00 € | L80: Keine Änderung
I81: 0.00 € | L81: Keine Änderung
I82: 0.00 € | L82: Keine Änderung
I83: 0.00 € | L83: Keine Änderung
A84: 5 | B84: Sonstige Kosten / Verbrauchsmaterialien | D84: =IF('1. Stammdaten (Empfänger)'!C20="Ja",CONCATENATE("AUSFÜLLHILFE: ",TRIM(Beispiel!O46)),"") -> AUSFÜLLHILFE: Bitte beachten Sie dass indirekte Kosten unter die Verwaltungsgemeinkosten fallen. Es können nur direkte Kosten als einzelne Budgetlinien budgetiert werden. Wenn Mietkosten angegeben werden können nur direkte Kosten, sprich die Kaltmiete, kalkuliert werden. Die Nebenkosten sind als indirekte Kosten und somit in die Verwaltungsgemeinkosten mit einzurechnen. Im Gegensatz zu beschafften Sachgütern, die über einen längeren Zeitraum verwendet werden, handelt es sich bei Verbrauchsmaterialien um Güter, die aufgebraucht werden - wie bspw. Druckerpatronen, Druckerpapier. | I84: =SUM(I85:I100) -> 0.00 €
I85: =ROUND(D85*H85,2) -> 0.00 € | L85: Keine Änderung
I86: =ROUND(D86*H86,2) -> 0.00 € | L86: Keine Änderung
I87: 0.00 € | L87: Keine Änderung
I88: 0.00 € | L88: Keine Änderung
I89: 0.00 € | L89: Keine Änderung
I90: 0.00 € | L90: Keine Änderung
I91: 0.00 € | L91: Keine Änderung
I92: 0.00 € | L92: Keine Änderung
I93: 0.00 € | L93: Keine Änderung
I94: 0.00 € | L94: Keine Änderung
I95: 0.00 € | L95: Keine Änderung
I96: 0.00 € | L96: Keine Änderung
I97: 0.00 € | L97: Keine Änderung
I98: 0.00 € | L98: Keine Änderung
I99: 0.00 € | L99: Keine Änderung
I100: 0.00 € | L100: Keine Änderung
A101: 6 | B101: Mittel zur direkten Unterstützung von Drittbegünstigten (Hinweis: Diese Budgetlinie bezieht sich vorzugsweise auf Sachbeiträge an Drittbegünstigte, im Falle von finanziellen Beiträgen muss klar dargestellt werden, wie Zahlungen nachgewiesen werden. Das Auswahlverfahren für die Drittbegünstigten muss in der Projektbeschreibung verdeutlicht werden) | D101: =IF('1. Stammdaten (Empfänger)'!C20="Ja",CONCATENATE("AUSFÜLLHILFE: ",TRIM(Beispiel!O57)),"") -> AUSFÜLLHILFE: Bitte den Hinweis in der Budgetzeile beachten. Nachweise müssen im Budget vereinbart und Auswahlkriterien in der Projektbeschreibung dargestellt werden. Wichtig: Hier handelt es sich nur um Begünstigte, die von dem Projekt des Empfängers profitieren. Dazu gehören Start-Up Förderung, Förderung von Initiativen, Cash for Work, Förderwettbewerbe, Stipendien und ähnliches. Absprache zu Nachweisen ist erforderlich. Zu den Details ist eine Beratung beim Vertragsmanagement notwendig. | I101: =SUM(I102:I107) -> 0.00 €
B102: XXX (Abrechnung erfolgt gegen…) | I102: =ROUND(D102*F102*H102,2) -> 0.00 € | L102: Keine Änderung
B103: XXX (Abrechnung erfolgt gegen…) | I103: =ROUND(D103*F103*H103,2) -> 0.00 € | L103: Keine Änderung
B104: XXX (Abrechnung erfolgt gegen…) | I104: =ROUND(D104*F104*H104,2) -> 0.00 € | L104: Keine Änderung
B105: XXX (Abrechnung erfolgt gegen…) | I105: 0.00 € | L105: Keine Änderung
B106: XXX (Abrechnung erfolgt gegen…) | I106: 0.00 € | L106: Keine Änderung
B107: XXX (Abrechnung erfolgt gegen…) | I107: 0.00 € | L107: Keine Änderung
A108: 7 | B108: Anteilige lokale Projektkosten (bspw. IT, Research) | D108: =IF('1. Stammdaten (Empfänger)'!C20="Ja",CONCATENATE("AUSFÜLLHILFE: ",TRIM(Beispiel!O62)),"") -> AUSFÜLLHILFE: Diese Budgetlinie ist nur für Organisationen, die in ihren Buchhaltungssystemen mit einer Verteilung bzw. Umlage der Gemeinkosten arbeiten und diese entsprechend nachweisen können. Die Nachweisart wird für jeden Einzelfall festgelegt. Ein konkretes Beispiel ist der prozentuale Nachweis anhand der Gesamtkosten und Zeitaufschriebe. | I108: =SUM(I109:I111) -> 0.00 €
I109: =ROUND(D109*F109*H109,2) -> 0.00 € | L109: Keine Änderung
I110: =ROUND(D110*F110*H110,2) -> 0.00 € | L110: Keine Änderung
I111: =ROUND(D111*F111*H111,2) -> 0.00 € | L111: Keine Änderung
B112: Zwischensumme - direkte Kosten | I112: =I108+I101+I84+I67+I50+I32+I5 -> 0.00 €
A113: 8 | B113: Verwaltungsgemeinkosten | D113: =IF('1. Stammdaten (Empfänger)'!C20="Ja",CONCATENATE("AUSFÜLLHILFE: ",TRIM(Beispiel!O66)),"") -> AUSFÜLLHILFE: Die Verwaltungsgemeinkosten sollten 0% betragen. Diese werden normalerweise als Eigenbetrag des Finanzierungsempfängers übernommen. Wenn die Übernahme durch den Finanzierungsempfänger nicht möglich ist, kann die GIZ einen kleinen Anteil der Verwaltungsgemeinkosten übernehmen. Die Art und Höhe der Kosten wird ggf. durch einen Wirtschaftsprüfer überprüft. Wenn sich die Verwaltungsgemeinkosten auf weniger Budgetlinien beziehen ist eine Information ans Vertragsmanagement erforderlich. | I113: =I114 -> 0.00 €
B114: Verwaltungsgemeinkosten (auf Budgetlinie 1-X) | D114: 0.00% | H114: =I112 -> 0.00 € | I114: =D114*H114 -> 0.00 € | L114: Keine Änderung
B115: Zwischensumme - Finanzierung durch GIZ (bis zu - gegen Nachweis)* (direkte Kosten + Verwaltungsgemeinkosten) | I115: =I112+I113 -> 0.00 €
B116: GIZ Anteil (bis zu - gegen Nachweis)* | I116: =I115 -> 0.00 €
B118: *Alle Budgetlinien (mit Ausnahme der Verwaltungsgemeinkosten) müssen gegen Nachweis abgerechnet werden.
B120: Information: Sofern Vergaben für externe Dienstleistungen und/oder für Sachgüter und/oder Lieferungen von GIZ Geldern finanziert werden sollen, müssen die relevanten Vergaberichtlinien gemäß Vertragstext eingehalten werden!
B123: Einnahmen und Gewinne des Drittempfängers werden nicht finanziert. Interne Rechnungsstellungen zwischen Organisationseinheiten des Drittempfängers werden nicht finanziert.
B125: Bei Vertragsergänzungen: Bitte nehmen Sie Budgetanpassungen auf Basis des zuletzt vertraglich vereinbartem Budgets vor und markieren Sie die Änderungen farblich. Kosten, die aufgrund von Währungsschwankungen enstehen, können nicht von der GIZ übernommen werden.

Sheet Beispiel
A1: Budget/Finanzierungsplan - Anlage 1 | J1: ='1. Stammdaten (Empfänger)'!C33 -> 00:00:00 | O1: Bearbeitungshinweise: Dies dient nur zur Orientierung für den Reiter "Budget Finanzierungen".
B3: Beschreibung | C3: Code | D3: Anzahl | E3: Einheit (z.B. Person, Fahrzeug, Raum…) | F3: Anzahl | G3: Einheit (z.B. Monate, Tage, Trainings…) | H3: Förderfähig bis zu in EUR (Preis pro Einheit) | I3: Gesamt GIZ Anteil in EUR (bis zu) | J3: Eigenbeitrag / Dritt-finanzierung in EUR (bis zu) | O3: Generelle Hinweise: Dieses Format des Budgets gilt als Abrechnungsgrundlage. Sie können gerne für Ihren internen Gebrauch weitere Dateien mit ausführlicheren Informationen erstellen. Alle Positionen, die im Budget aufgeführt sind, müssen sich in der Projektbeschreibung wiederfinden, um den Projektbezug ersichtlich zu machen. Die Tabelle ist mit Formeln gespeist, welche beibehalten werden müssen. Bitte behalten Sie die Formatierung mit zwei Nachkommastellen bei. Es empfiehlt sich, Einheiten, wenn möglich, aufzurunden. Die Kosten werden mit einem Wert "bis zu" vereinbart.
B4: Hinweis: Blaue Felder durch den Zuschussempfänger auszufüllen | I4: Hinweis: Wird automatisch ausgefüllt | O4: Hinweise für die Erstellung
A5: 1 | B5: Personal - Selbstkosten für Arbeit-nehmer*innen des ZE (Funktionsbezeichnung) (Hinweis 1: Nur Mitarbeiter/innen Ihrer Organisationen; der Nachweis dieser Budgetlinie muss in Form von Gehaltsabrechnungen bzw. bei Teilfinanzierungen in Form von Gehaltsabrechnungen und Zeitaufschrieben erfolgen; Hinweis 2: Es können ausschließlich Personaleinzelkosten (Arbeitgeberbrutto) abgerechnet werden, Zuschläge wie Personalgemeinkosten, die anteilig auf Personal berechnet werden, sind nicht förderungsfähig) | I5: =SUM(I6:I10) -> 94,000.00 | J5: Die GIZ kann keine Budgetlinien anteilig übernehmen, mit Ausnahme der Hauptbudgetlinien "Personalkosten", die prozentual angesetzt werden können, sowie "Anteilige lokale Projektkosten". Weitere Kosten, welche im Rahmen der Projektumsetzung anfallen und nicht durch die GIZ übernommen werden sollen, werden separat kalkuliert. Entweder als Eigenanteil, oder, falls einschlägig, als finanzieller Beitrag eines Dritten/ Drittfinanzierung. | O5: Die Spalte "Förderfähig bis zu" sollte immer das Arbeitgeberbrutto ausweisen. Bei Teilzeitstellen ist der Prozentsatz in Spalte D anzugeben. Bitte geben Sie an, welche gesetzlichen Personalnebenkosten für Ihr Land anfallen. Grundsätzlich finanzierbar sind Sozialabgaben, und arbeitsvertraglich oder tariflichvertraglich vereinbarte Zahlungen (ausgenommen sind Bonuszahlungen oder Gewinnbeteiligungen). Davon abweichende Nebenkosten müssen vor Vertragserstellung abgesprochen, geprüft und als Notiz in die Budgetzeile aufgenommen werden. Verträge über Minijobs oder studentische Hilfskräfte sind den Personalkosten zuzuordnen, auch wenn keine Sozialabgaben anfallen. Wenn anteilig mehrere Personen finanziert werden sollen (bspw. 3 Personen à 75% - bitte entsprechend die Anzahl der Monate erhöhen und die Anzahl der Personen in der Beschreibung der Budgetlinie aufnehmen.
B6: Projektmanager | D6: 100% | E6: Person | F6: 20 | G6: Monate | H6: 3,000.00 | I6: =D6*F6*H6 -> 60,000.00
B7: Finanzmanager | D7: 50% | E7: Person | F7: 20 | G7: Monate | H7: 2,200.00 | I7: =D7*F7*H7 -> 22,000.00
B8: Severance Payments / gesetzlich geregelte Rückstellungen | D8: 100% | E8: Person | F8: 20 | G8: Monate | H8: 600.00 | I8: =D8*F8*H8 -> 12,000.00
E9: Person | G9: Monate | I9: 0.00
E10: Person | G10: Monate | I10: 0.00
A11: 2 | B11: Externe Dienstleistungen (Position bzw. Funktion) | I11: =SUM(I12:I21) -> 7,000.00 | O11: Funktionstitel angeben; keine Details des Vertrages (Arbeitsstunden etc); nur die Anzahl der Verträge und den geplanten Wert nennen (die relevanten Vergaberichtlinien gemäß Vertragstext müssen eingehalten werden!); pro Vertrag sollte eine Budgetzeile verwendet werden; alle Kosten, die im Rahmen der Leistungserbringung unter einem Dienstleistungsvertrag anfallen (bspw. Training, Reisen), werden in einer Budgetlinie dargestellt. Veranstaltungen: Leistungen die vom selben Anbieter erbracht werden, sollen in einer Budgetzeile dargestellt werden. (z. Bsp: wenn Catering und der Veranstaltungsort von einem Hotel angeboten werden, dann gehören diese in eine Budgetzeile, wenn ein anderes Hotel für Übernachtungen gebucht wird, gehört dieses in eine einzelne Budgetlinie) Einnahmen, die der Empfänger aus dem Veranstaltungsbetrieb erhält, können nicht aus dem Vertrag finanziert werden (z. Bsp Raummiete für eigene Räumlichkeiten). Nur tatsächliche nachweisbare Kosten werden finanziert.
B12: Moderation | D12: 1 | E12: Vertrag | H12: 5,000.00 | I12: =D12*H12 -> 5,000.00
B13: Catering & Raummiete | D13: 1 | E13: Vertrag | H13: 2,000.00 | I13: =D13*H13 -> 2,000.00
B14: Expert*in für Solartechnik | E14: Vertrag | I14: 0.00
B15: Expert*in für ….. | E15: Vertrag | I15: 0.00
B16: externe Arbeitskräfte ( nicht im sozialversicherungpfl. Angestellenverhältnis mit Empfänger) | E16: Vertrag | I16: 0.00
B17: Beratungsaufträge | E17: Vertrag | I17: 0.00
B18: externe Unternehmen, z.B. für Bus-Transporte | E18: Vertrag | I18: 0.00
E19: Vertrag | I19: 0.00
E20: Vertrag | I20: 0.00
E21: Vertrag | I21: 0.00
A22: 3 | B22: Transportkosten / Reisekosten | I22: =SUM(I23:I32) -> 4,500.00 | O22: Zu Reisekosten zählen üblicherweise alle Arten von Transport, Übernachtungen, Tagegelder, Visa. Anderweitige Kosten sind bitte separat aufzuführen. Die Abrechnung erfolgt anhand der Rechnungen und/oder der Reiserichtlinien des Empfängers und/oder gesetzlichen Vorgaben (zum Bsp: Bundesreisekostengesetz) . Eine Aufteilung in verschiedene Personengruppen ist nicht erwünscht. Bitte geben Sie keine Menge der Flüge an - bei Abweichungen sind Vertragsergänzungen notwendig und solle ein Audit stattfinden wird die Zahl der Flüge geprüft.
B23: internationale Flüge | D23: 1 | E23: Einheit | H23: 4,000.00 | I23: =D23*H23 -> 4,000.00
B24: nationale Flüge | D24: 1 | E24: Einheit | H24: 500.00 | I24: =D24*H24 -> 500.00
B25: internationale Reisekosten ( Tage-/ Übernachtungsgeld, Transportmittel, Visa, notwendige Impfungen ) | I25: 0.00
B26: nationale Reisekosten ( Tage-/Übernachtungsgeld, Transportmittel ) | I26: 0.00
B27: Transportkosten von Waren | I27: 0.00
B28: Reisekosten der Workshop-Teilnehmenden | I28: 0.00
I29: 0.00
B30: 4. Co2 Kompensationen | I30: 0.00 | K30: möglicherweise erstmal raus
I31: 0.00
I32: 0.00
I33: 0.00
I34: 0.00
A35: 4 | B35: Beschaffung von Sachgütern | I35: =SUM(I36:I45) -> 4,000.00 | O35: Güter, die beschafft und innerhalb von einer Rechnung nachgewiesen werden, sollten in einer Budgetzeile dargestellt werden. Z. B. kann IT Equipment als eine Budgetlinie aufgeführt werden - in diesem Fall sollte in Klammern näher definiert werden, welche Sachgüter voraussichtlich beschafft werden. Im Fall von Medikamente, Pestiziden oder Mineraldünger sind weitere Details für eine Freigabe notwendig.
B36: IT Equipment (Laptop, Drucker, Beamer, Zubehör) | D36: 1 | E36: Beschaffung | H36: 4,000.00 | I36: =D36*H36 -> 4,000.00
B37: Fotoausrüstung (Kamera und Zubehör) | D37: 1 | E37: Beschaffung | I37: =D37*H37 -> 0.00
B38: Maschine XY (konkrete Angabe, welche Maschine - aber kein konkretes Modell einer Firma nennen!) | E38: Beschaffung | I38: 0.00
B39: Mobiliar (Schreibtische, Stühle, Schränke) | E39: Beschaffung | I39: 0.00
B40: Fahrzeuge genau angeben, welche Art: z.B. Elektroauto, gepanzerter SUV, Motorroller ... | E40: Beschaffung | I40: 0.00
B41: Mobiltelefone | E41: Beschaffung | I41: 0.00
I42: 0.00
I43: 0.00
I44: 0.00
I45: 0.00
A46: 5 | B46: Sonstige Kosten / Verbrauchsmaterialien | I46: =SUM(I47:I56) -> 100.00 | O46: Bitte beachten Sie dass indirekte Kosten unter die Verwaltungsgemeinkosten fallen. Es können nur direkte Kosten als einzelne Budgetlinien budgetiert werden. Wenn Mietkosten angegeben werden können nur direkte Kosten, sprich die Kaltmiete, kalkuliert werden. Die Nebenkosten sind als indirekte Kosten und somit in die Verwaltungsgemeinkosten mit einzurechnen. Im Gegensatz zu beschafften Sachgütern, die über einen längeren Zeitraum verwendet werden, handelt es sich bei Verbrauchsmaterialien um Güter, die aufgebraucht werden - wie bspw. Druckerpatronen, Druckerpapier.
B47: Büromaterialien (Druckerpapier, Druckerpatronen, Schreibmaterialien) | D47: 1 | E47: Einheit | H47: 100.00 | I47: =D47*H47 -> 100.00
B48: IT-Software, Lizensen | I48: =D48*H48 -> 0.00
B49: Verpackungsmaterial für xxx | I49: 0.00
B50: Laborbedarf | I50: 0.00
B51: Hygienebedarf | I51: 0.00
B52: Werkzeug | I52: 0.00
B53: Wasser | I53: 0.00
B54: Flyer / Werbematerial | I54: 0.00
B55: Telefonkosten, Telefonkarten… | I55: 0.00
I56: 0.00
A57: 6 | B57: Mittel zur direkten Unterstützung von Drittbegünstigten (Hinweis: Diese Budgetlinie bezieht sich vorzugsweise auf Sachbeiträge an Drittbegünstigte, im Falle von finanziellen Beiträgen muss klar dargestellt werden, wie Zahlungen nachgewiesen werden. Das Auswahlverfahren für die Drittbegünstigten muss in der Projektbeschreibung verdeutlicht werden) | I57: =SUM(I58:I61) -> 600.00 | O57: Bitte den Hinweis in der Budgetzeile beachten. Nachweise müssen im Budget vereinbart und Auswahlkriterien in der Projektbeschreibung dargestellt werden. Wichtig: Hier handelt es sich nur um Begünstigte, die von dem Projekt des Empfängers profitieren. Dazu gehören Start-Up Förderung, Förderung von Initiativen, Cash for Work, Förderwettbewerbe, Stipendien und ähnliches. Absprache zu Nachweisen ist erforderlich. Zu den Details ist eine Beratung beim Vertragsmanagement notwendig.
B58: Cash for Work (Abrechnung erfolgt gegen Teilnahmeliste, Empfangsbestätigung per Unterschrift oder Fingerabdruck; Auswahlverfahren ist in der Projektbeschreibung dargestellt) | D58: 10 | E58: Personen | F58: 20 | G58: Tage | H58: 3.00 | I58: =D58*F58*H58 -> 600.00
I59: =D59*F59*H59 -> 0.00
I60: 0.00
I61: 0.00
A62: 7 | B62: Anteilige lokale Projektkosten (bspw. IT, Research) | I62: =SUM(I63:I64) -> 0.00 | O62: Diese Budgetlinie ist nur für Organisationen, die in ihren Buchhaltungssystemen mit einer Verteilung bzw. Umlage der Gemeinkosten arbeiten und diese entsprechend nachweisen können. Die Nachweisart wird für jeden Einzelfall festgelegt. Ein konkretes Beispiel ist der prozentuale Nachweis anhand der Gesamtkosten und Zeitaufschriebe.
E63: Einheit | I63: =D63*H63 -> 0.00
I64: =D64*F64*H64 -> 0.00
B65: Zwischensumme - direkte Kosten | I65: =I46+I35+I11+I5+I22+I30+I57 -> 110,200.00
A66: 8 | B66: Verwaltungsgemeinkosten | I66: =I67 -> 5,510.00 | O66: Die Verwaltungsgemeinkosten sollten 0% betragen. Diese werden normalerweise als Eigenbetrag des Finanzierungsempfängers übernommen. Wenn die Übernahme durch den Finanzierungsempfänger nicht möglich ist, kann die GIZ einen kleinen Anteil der Verwaltungsgemeinkosten übernehmen. Die Art und Höhe der Kosten wird ggf. durch einen Wirtschaftsprüfer überprüft. Wenn sich die Verwaltungsgemeinkosten auf weniger Budgetlinien beziehen ist eine Information ans Vertragsmanagement erforderlich.
B67: Verwaltungsgemeinkosten (auf Budgetlinie 1-7) | D67: 5% | H67: =I65 -> 110,200.00 | I67: =D67*H67 -> 5,510.00
B68: Zwischensumme - Finanzierung durch GIZ (bis zu - gegen Nachweis)* (direkte Kosten + Verwaltungsgemeinkosten) | I68: =I65+I66 -> 115,710.00
A69: 9 | B69: Weiterleitung von Mitteln an Drittempfänger - ein detailliertes Budget muss eingereicht werden - | O69: Hier handelt es sich um Drittempfänger (Co-Implementierer). Es sind Partner die eigenständig einen Teil des Projekts umsetzten. Es muss ein gesondertes Budget eingereicht und eine kaufmännisch und rechtliche Eignungsprüfung (nur die Kriterien: Rechtspersönlichkeit und Gemeinnützigkeit) durch das GIZ-Projekt durchgeführt werden.
B70: OPQ | D70: 1 | E70: Einheit | F70: 1 | G70: Weiterleitung | H70: 10,000.00 | I70: =D70*F70*H70 -> 10,000.00 €
B71: XYZ (Name Drittempfänger) | D71: 1 | E71: Einheit | F71: 1 | G71: Weiterleitung | I71: =D71*F71*H71 -> 0.00 €
B72: XYZ (Name Drittempfänger) | D72: 1 | E72: Einheit | F72: 1 | G72: Weiterleitung | I72: 0.00 € | K72: Anteile in Prozent
B73: GIZ Anteil (bis zu - gegen Nachweis)* | I73: =I68 -> 115,710.00 € | J73: =I73 -> 115,710.00 € | K73: =J73/$I$79 -> 88.52%
A74: =10 -> 10 | B74: Eigenbeitrag / Drittfinanzierung | J74: =SUM(J75:J77) -> 15,000.00 | O74: Geben Sie nur den Gesamtwert des Eigenbeitrags/der Drittfinanzierung an. Eine kurze Beschreibung der Anteilsfinanzierung ist in die Projektbeschreibung mit aufzunehmen.
B75: ABC(Eigenbeitrag) | D75: 1 | E75: Einheit | F75: 1 | G75: Beitrag | H75: 5,000.00 | J75: =H75 -> 5,000.00 | K75: =J75/$I$79 -> 3.83%
B76: DEF (Drittfinanzierung) | D76: 1 | E76: Einheit | F76: 1 | G76: Beitrag | H76: 10,000.00 | J76: =H76 -> 10,000.00 | K76: 7.65%
D77: 1 | E77: Einheit | F77: 1 | G77: Beitrag | H77: =_xlfn.IFS('1. Stammdaten (Empfänger)'!$C$9="Auswählen", "",'1. Stammdaten (Empfänger)'!$C$9>0,'1. Stammdaten (Empfänger)'!G26, TRUE,"") ->  | K77: =IFERROR(J77/$I$79,"") -> 
D78: 1 | E78: Einheit | F78: 1 | G78: Beitrag | H78: =_xlfn.IFS('1. Stammdaten (Empfänger)'!$C$9="Auswählen", "",'1. Stammdaten (Empfänger)'!$C$9>0,'1. Stammdaten (Empfänger)'!G27, TRUE,"") ->  | J78: =H78 ->  | K78: =IFERROR(J78/$I$79,"") -> 
B79: Gesamtfinanzierung | I79: =I73+J74 -> 130,710.00 € | K79: =SUM(K73:K78) -> 100.00%
B81: *Alle Budgetlinien (mit Ausnahme der Verwaltungsgemeinkosten) müssen gegen Nachweis abgerechnet werden.
B83: Information: Sofern Vergaben für externe Dienstleistungen und/oder für Sachgüter und/oder Lieferungen von GIZ Geldern finanziert werden sollen, müssen die relevanten Vergaberichtlinien gemäß Vertragstext eingehalten werden!
B86: Einnahmen und Gewinne des Empfängers werden nicht finanziert. Interne Rechnungsstellungen zwischen Organisationseinheiten des Empfängers werden nicht finanziert.
B89: Bei Vertragsergänzungen: Bitte nehmen Sie Budgetanpassungen auf Basis des zuletzt vertraglich vereinbartem Budgets vor und markieren Sie die Änderungen farblich. Kosten, die aufgrund von Währungsschwankungen enstehen, können nicht von der GIZ übernommen werden. | O89: Im Antrag auf Änderung des Vertrages sollen die Budgetumwidmungen erläutert werden. Insbesondere bei der Erhöhung von Personalkosten ist eine Begründung zu nennen.
